[Event "IND-ch Women 2019"]
[Site "Karaikkudi"]
[Date "2019.07.23"]
[Round "7.11"]
[White "Priyanka, Kumari"]
[Black "Meghna, C H"]
[Result "1-0"]
[ECO "C01"]
[WhiteElo "1991"]
[BlackElo "1903"]
[Annotator "NA"]
[PlyCount "115"]
[EventDate "2019.07.19"]
[EventType "swiss"]
[EventCountry "IND"]
[SourceTitle "playchess.com"]
[Source "ChessBase"]
[SourceQuality "1"]
[TimeControl "40/5400+30:1800+30"]

1. e4 {[%emt 0:00:09]} e6 {[%emt 0:00:00]} 2. d4 {[%emt 0:00:13]} d5 {[%emt 0:00:00]} 3. Nc3 {[%emt 0:00:07]} Bb4 {[%emt 0:00:00]} 4. exd5 {[%emt 0:02:20]} exd5 {[%emt 0:00:00]} 5. Bd3 {[%emt 0:00:17]} Nf6 {[%emt 0:00:08]} 6. Nge2 {[%emt 0:06:06]} c6 {[%emt 0:00:39]} 7. O-O {[%emt 0:02:10]} O-O {[%emt 0:00:07]} 8. Ng3 {[%emt 0:02:11] C01: French: Exchange Variation} (8. Bg5 h6 9. Bh4 Re8 10. f3 Nbd7 11. Qd2 Nf8 12. Rae1 Bd6 13. Bg3 Ng6 14. Bxd6 Qxd6 15. Bxg6 fxg6 {1-0 (39) Aronian,L (2767)-Caruana,F (2822) chess.com INT 2018}) 8... Bg4 {[%emt 0:10:01]} 9. f3 {[%emt 0:08:28]} Be6 {[%emt 0:00:15]} 10. Nce2 {[%emt 0:01:08]} Qb6 $146 {[%emt 0:11:21]} ({Predecessor:} 10... Bd6 11. c3 Qc7 12. Bc2 Nbd7 13. Bg5 h6 14. Be3 Rfe8 15. Qd2 b6 {0-1 (39) Vasiesiu,D (2379)-Yugina,M (2124) Cap Aurora 2018}) 11. c3 {[%emt 0:07:59]} Bd6 {[%emt 0:00:11]} 12. Bg5 {[%emt 0:08:08]} Nbd7 {[%emt 0:01:12]} 13. Qd2 {[%emt 0:04:29]} h6 {[%emt 0:19:34]} 14. Be3 {[%emt 0:12:59]} Qc7 {[%emt 0:01:15]} 15. f4 {[%emt 0:10:02]} (15. Nf4 $14) 15... Bg4 {[%emt 0:02:51]} 16. h3 {[%emt 0:03:04]} Bxe2 {[%emt 0:02:23]} 17. Qxe2 {[%emt 0:00:18]} Rfe8 {[%emt 0:02:28]} 18. Qf3 {[%emt 0:01:21]} c5 {[%emt 0:07:59]} 19. Nf5 {[%emt 0:04:03]} Bf8 {[%emt 0:01:44]} 20. dxc5 {[%emt 0:03:52]} Nxc5 {[%emt 0:01:36]} 21. Bd4 {[%emt 0:03:41]} Re6 {[%emt 0:07:05]} 22. Rad1 {[%emt 0:07:27]} Nxd3 {[%emt 0:05:03]} 23. Qxd3 {[%emt 0:02:39]} Rd8 {[%emt 0:08:51]} 24. Rf3 {[%emt 0:07:47]} Ne4 {[%emt 0:02:33]} 25. Rdf1 {[%emt 0:00:35]} Qd7 {[%emt 0:01:42]} 26. Ng3 {[%emt 0:00:24]} f6 {[%emt 0:06:21]} 27. f5 {[%emt 0:00:46]} Ree8 {[%emt 0:00:07]} 28. Nxe4 {[%emt 0:00:35]} Rxe4 {[%emt 0:01:31]} 29. Re3 {[%emt 0:00:14]} Rxe3 {[%emt 0:02:28]} 30. Bxe3 {[%emt 0:00:23]} b6 {[%emt 0:00:36]} 31. Rd1 {[%emt 0:00:22]} Bc5 {[%emt 0:00:49]} 32. g4 {[%emt 0:01:09]} Qe7 {[%emt 0:02:11]} 33. Kf2 {[%emt 0:00:23]} Qe5 {[%emt 0:00:22]} 34. Bxc5 {[%emt 0:00:35]} bxc5 {[%emt 0:01:04]} 35. Qg3 {[%emt 0:00:18]} d4 {[%emt 0:01:46]} 36. Qxe5 {[%emt 0:00:40]} fxe5 {[%emt 0:00:01]} 37. Kf3 {[%emt 0:00:26]} Kf7 {[%emt 0:00:15]} 38. Ke4 {[%emt 0:00:16]} Kf6 {[%emt 0:00:16]} 39. h4 {[%emt 0:00:38]} dxc3 {[%emt 0:01:04]} 40. g5+ {[%emt 0:00:00]} hxg5 {[%emt 0:00:00]} 41. hxg5+ {[%emt 0:04:24]} (41. Rxd8 $2 {loses.} c2 $19) 41... Kxg5 {[%emt 0:02:17]} 42. Rg1+ {[%emt 0:00:22]} Kf6 {[%emt 0:00:52]} 43. bxc3 {[%emt 0:00:11]} Rd2 {[%emt 0:03:02]} 44. Rg6+ {[%emt 0:03:35]} Kf7 {[%emt 0:00:01]} 45. Ra6 {[%emt 0:02:06]} Re2+ {[%emt 0:09:14]} 46. Kd5 {[%emt 0:05:22]} Rc2 {[%emt 0:00:25]} (46... e4 $11 {remains equal.}) 47. Kxe5 {[%emt 0:10:31]} Rxc3 {[%emt 0:00:38]} 48. Rxa7+ {[%emt 0:00:09]} Kf8 {[%emt 0:00:19]} 49. a4 {[%emt 0:01:26]} Rc1 $18 {[%emt 0:08:52]} (49... c4 $14) 50. Ra8+ {[%emt 0:01:47]} Kf7 {[%emt 0:00:22]} 51. Ra7+ {[%emt 0:00:24]} Kf8 {[%emt 0:00:04]} 52. a5 {[%emt 0:02:29]} c4 {[%emt 0:00:13]} 53. Kd4 {[%emt 0:00:51]} c3 {[%emt 0:00:42]} 54. Kd3 {[%emt 0:01:35]} c2 {[%emt 0:00:14]} 55. a6 {[%emt 0:02:00]} Rf1 {[%emt 0:00:41]} 56. Kxc2 {[%emt 0:00:05]} Rxf5 {[%emt 0:00:03]} 57. Rb7 {[%emt 0:00:39]} g5 {[%emt 0:03:03]} 58. a7 {[%emt 0:00:21]} 1-0

[Event "IND-ch Women 2019"]
[Site "Karaikkudi"]
[Date "2019.07.23"]
[Round "7.12"]
[White "Sharma Isha"]
[Black "Bakshi, Rutuja"]
[Result "1/2-1/2"]
[ECO "C00"]
[WhiteElo "2188"]
[BlackElo "1958"]
[Annotator "ChessBase"]
[PlyCount "108"]
[EventDate "2019.07.19"]
[EventType "swiss"]
[EventCountry "IND"]
[SourceTitle "playchess.com"]
[Source "ChessBase"]
[SourceQuality "1"]
[TimeControl "40/5400+30:1800+30"]

1. e4 {[%emt 0:00:00]} e6 {[%emt 0:00:00]} 2. d3 {[%emt 0:01:02]} d5 {[%emt 0:00:02]} 3. Nd2 {[%emt 0:00:06]} c5 {[%emt 0:00:25]} 4. g3 {[%emt 0:00:06]} Nc6 {[%emt 0:00:31]} 5. Bg2 {[%emt 0:00:24]} Nf6 {[%emt 0:00:20]} 6. Ngf3 {[%emt 0:00:08]} b6 {[%emt 0:00:22]} 7. O-O {[%emt 0:00:49]} Bb7 {[%emt 0:00:02]} 8. Re1 {[%emt 0:00:23]} Be7 {[%emt 0:00:07]} 9. e5 {[%emt 0:00:11]} Nd7 {[%emt 0:00:13]} 10. Nf1 {[%emt 0:00:23]} Qc7 {[%emt 0:00:23]} 11. Qe2 {[%emt 0:00:08]} O-O-O {[%emt 0:03:21]} 12. c3 {[%emt 0:00:39]} h6 {[%emt 0:05:20]} 13. d4 {[%emt 0:57:46]} g5 {[%emt 0:00:30]} 14. h3 {[%emt 0:00:30]} Rdg8 {[%emt 0:00:30]} 15. Bd2 {[%emt 0:00:30]} Kb8 {[%emt 0:00:30]} 16. g4 {[%emt 0:00:30]} h5 {[%emt 0:00:30]} 17. Ng3 {[%emt 0:00:30]} hxg4 {[%emt 0:00:30]} 18. hxg4 {[%emt 0:00:30]} Qc8 {[%emt 0:00:30]} 19. b3 {[%emt 0:00:30]} c4 {[%emt 0:00:30]} 20. Qd1 {[%emt 0:00:30]} Na5 {[%emt 0:00:30]} 21. Bf1 {[%emt 0:00:30]} Nf8 {[%emt 0:00:30]} 22. b4 {[%emt 0:00:30]} Nc6 {[%emt 0:00:30]} 23. a4 {[%emt 0:00:30]} Qd8 {[%emt 0:00:30]} 24. Nh5 {[%emt 0:00:30]} Ng6 {[%emt 0:00:30]} 25. Nh2 {[%emt 0:00:30]} Qf8 {[%emt 0:00:30]} 26. Bg2 {[%emt 0:00:30]} Qh6 {[%emt 0:00:30]} 27. Qc1 {[%emt 0:04:50]} Nh4 {[%emt 1:12:23]} 28. Bh1 {[%emt 0:06:39]} Qg6 {[%emt 0:03:25]} 29. Qb1 {[%emt 0:01:53]} Rh6 {[%emt 0:03:59]} 30. Qxg6 {[%emt 0:07:24]} Rhxg6 {[%emt 0:02:23]} 31. a5 {[%emt 0:03:03]} b5 {[%emt 0:02:16]} 32. Rad1 {[%emt 0:01:48]} Kc7 {[%emt 0:03:28]} 33. f3 {[%emt 0:02:57]} Nb8 {[%emt 0:00:00]} 34. Re2 {[%emt 0:00:34]} Nd7 {[%emt 0:00:00]} 35. Nf1 {[%emt 0:00:13]} Bc8 {[%emt 0:00:00]} 36. Rh2 {[%emt 0:00:23]} f6 {[%emt 0:01:06]} 37. exf6 {[%emt 0:01:13]} Nxf6 {[%emt 0:00:20]} 38. Nxf6 {[%emt 0:00:06]} Rxf6 {[%emt 0:00:38]} 39. Kf2 {[%emt 0:03:35]} Rf7 {[%emt 0:00:38]} 40. Ke2 {[%emt 0:00:00]} Bd6 {[%emt 0:00:00]} 41. Rh3 {[%emt 0:01:17]} Be7 {[%emt 0:05:06]} 42. Ng3 {[%emt 0:03:06]} Bd7 {[%emt 0:04:52]} 43. Nh5 {[%emt 0:01:09]} Rgf8 {[%emt 0:01:13]} 44. Be1 {[%emt 0:02:15]} Ng6 {[%emt 0:00:18]} 45. Bg2 {[%emt 0:02:35]} Bd6 {[%emt 0:01:41]} 46. Bd2 {[%emt 0:02:09]} Be7 {[%emt 0:00:10]} 47. Be3 {[%emt 0:03:44]} Nh4 {[%emt 0:02:09]} 48. Bh1 {[%emt 0:00:38]} Ng6 {[%emt 0:02:41]} 49. Rh2 {[%emt 0:04:00]} a6 {[%emt 0:06:16]} 50. Rf2 {[%emt 0:01:41]} Bc6 {[%emt 0:01:12]} 51. Rff1 {[%emt 0:08:16]} Kd7 {[%emt 0:01:11]} 52. Bg1 {[%emt 0:03:12]} Bd6 {[%emt 0:00:58]} 53. Be3 {[%emt 0:00:05]} Be7 {[%emt 0:00:03]} 54. Bg1 {[%emt 0:00:29]} Bd6 {[%emt 0:00:01]} 1/2-1/2

[Event "IND-ch Women 2019"]
[Site "Karaikkudi"]
[Date "2019.07.23"]
[Round "7.13"]
[White "Bala Kannamma P"]
[Black "Parnali, S Dharia"]
[Result "1-0"]
[ECO "C07"]
[WhiteElo "2051"]
[BlackElo "2145"]
[Annotator "ChessBase"]
[PlyCount "101"]
[EventDate "2019.07.19"]
[EventType "swiss"]
[EventCountry "IND"]
[SourceTitle "playchess.com"]
[Source "ChessBase"]
[SourceQuality "1"]
[TimeControl "40/5400+30:1800+30"]

1. e4 {[%emt 0:00:00]} e6 {[%emt 0:00:00]} 2. d4 {[%emt 0:00:02]} d5 {[%emt 0:00:00]} 3. Nd2 {[%emt 0:00:07]} c5 {[%emt 0:00:04]} 4. exd5 {[%emt 0:00:14]} Qxd5 {[%emt 0:00:11]} 5. Ngf3 {[%emt 0:00:05]} cxd4 {[%emt 0:00:09]} 6. Bc4 {[%emt 0:00:03]} Qd6 {[%emt 0:00:17]} 7. O-O {[%emt 0:00:09]} Nf6 {[%emt 0:00:13]} 8. Nb3 {[%emt 0:00:06]} Nc6 {[%emt 0:00:11]} 9. Nbxd4 {[%emt 0:00:04]} Nxd4 {[%emt 0:00:11]} 10. Nxd4 {[%emt 0:00:27]} a6 {[%emt 0:00:12]} 11. c3 {[%emt 0:00:51]} Qc7 {[%emt 0:00:12]} 12. Bd3 {[%emt 0:07:24]} Bd6 {[%emt 0:01:02]} 13. h3 {[%emt 0:00:03]} Bd7 {[%emt 0:12:05]} 14. Qe2 {[%emt 0:06:41]} O-O {[%emt 0:06:29]} 15. Bg5 {[%emt 0:00:41]} Nd5 {[%emt 0:01:40]} 16. Qe4 {[%emt 0:08:09]} f5 {[%emt 0:02:26]} 17. Qe2 {[%emt 0:05:46]} e5 {[%emt 0:12:48]} 18. Bc4 {[%emt 0:07:11]} exd4 {[%emt 0:00:05]} 19. Bxd5+ {[%emt 0:00:04]} Kh8 {[%emt 0:00:05]} 20. Rfc1 {[%emt 0:07:36]} Rae8 {[%emt 0:18:02]} 21. Qf3 {[%emt 0:02:21]} dxc3 {[%emt 0:02:43]} 22. Rxc3 {[%emt 0:00:57]} Qb6 {[%emt 0:01:01]} 23. Rb3 {[%emt 0:18:58]} Qa5 {[%emt 0:01:31]} 24. Be3 {[%emt 0:04:59]} b5 {[%emt 0:06:43]} 25. Rd3 {[%emt 0:04:47]} Bb8 {[%emt 0:03:41]} 26. Bd2 {[%emt 0:06:28]} Qc7 {[%emt 0:00:19]} 27. g3 {[%emt 0:01:32]} f4 {[%emt 0:06:07]} 28. g4 {[%emt 0:03:43]} Qe5 {[%emt 0:07:50]} 29. Bc3 {[%emt 0:01:53]} Qe2 {[%emt 0:00:05]} 30. Qxe2 {[%emt 0:00:22]} Rxe2 {[%emt 0:00:07]} 31. Bf3 {[%emt 0:00:05]} Re7 {[%emt 0:04:50]} 32. Bb4 {[%emt 0:00:08]} Rfe8 {[%emt 0:00:37]} 33. Bxe7 {[%emt 0:00:03]} Rxe7 {[%emt 0:00:04]} 34. Rc1 {[%emt 0:01:21]} g5 {[%emt 0:01:11]} 35. Rxd7 {[%emt 0:01:09]} Rxd7 {[%emt 0:00:04]} 36. Rc8+ {[%emt 0:00:04]} Kg7 {[%emt 0:00:04]} 37. Rxb8 {[%emt 0:00:04]} Rd2 {[%emt 0:00:15]} 38. Rb7+ {[%emt 0:01:30]} Kg8 {[%emt 0:00:23]} 39. Ra7 {[%emt 0:01:14]} Rxb2 {[%emt 0:00:13]} 40. Bd5+ {[%emt 0:00:00]} Kh8 {[%emt 0:00:00]} 41. Rxa6 {[%emt 0:01:04]} b4 {[%emt 0:00:31]} 42. Kg2 {[%emt 0:00:24]} Rd2 {[%emt 0:00:15]} 43. Bb3 {[%emt 0:00:40]} Kg7 {[%emt 0:00:18]} 44. Rc6 {[%emt 0:00:20]} Rd8 {[%emt 0:00:24]} 45. Rc4 {[%emt 0:00:15]} Rb8 {[%emt 0:00:05]} 46. Rc7+ {[%emt 0:00:07]} Kg6 {[%emt 0:00:39]} 47. Bc2+ {[%emt 0:00:13]} Kf6 {[%emt 0:00:03]} 48. Rxh7 {[%emt 0:00:48]} Rc8 {[%emt 0:00:24]} 49. Bb3 {[%emt 0:00:18]} Rd8 {[%emt 0:00:33]} 50. Rh6+ {[%emt 0:00:34]} Ke5 {[%emt 0:00:55]} 51. Rb6 {[%emt 0:00:00] Kd5} 1-0

[Event "IND-ch Women 2019"]
[Site "Karaikkudi"]
[Date "2019.07.23"]
[Round "7.14"]
[White "Saranya, J."]
[Black "Jain Nityata"]
[Result "0-1"]
[ECO "A07"]
[WhiteElo "2067"]
[BlackElo "2135"]
[Annotator "ChessBase"]
[PlyCount "52"]
[EventDate "2019.07.19"]
[EventType "swiss"]
[EventCountry "IND"]
[SourceTitle "playchess.com"]
[Source "ChessBase"]
[SourceQuality "1"]
[TimeControl "40/5400+30:1800+30"]

1. Nf3 {[%emt 0:00:27]} Nf6 {[%emt 0:00:00]} 2. g3 {[%emt 0:00:07]} g6 {[%emt 0:00:00]} 3. Bg2 {[%emt 0:00:08]} Bg7 {[%emt 0:00:00]} 4. O-O {[%emt 0:00:21]} O-O {[%emt 0:00:00]} 5. d3 {[%emt 0:02:06]} d5 {[%emt 0:01:58]} 6. Nbd2 {[%emt 0:01:15]} Re8 {[%emt 0:09:56]} 7. e4 {[%emt 0:03:26]} e5 {[%emt 0:01:48]} 8. exd5 {[%emt 0:05:05]} Nxd5 {[%emt 0:00:33]} 9. a4 {[%emt 0:01:01]} Nc6 {[%emt 0:02:12]} 10. Nc4 {[%emt 0:00:49]} Nb6 {[%emt 0:06:53]} 11. Ne3 {[%emt 0:10:37]} a5 {[%emt 0:07:32]} 12. Nd2 {[%emt 0:04:32]} Be6 {[%emt 0:05:29]} 13. Ndc4 {[%emt 0:04:11]} Nxc4 {[%emt 0:04:14]} 14. Nxc4 {[%emt 0:00:18]} Bd5 {[%emt 0:02:06]} 15. f3 {[%emt 0:22:23]} Nd4 {[%emt 0:11:31]} 16. Be3 {[%emt 0:06:27]} Bc6 {[%emt 0:11:14]} 17. Qd2 {[%emt 0:05:52]} b6 {[%emt 0:00:58]} 18. Bxd4 {[%emt 0:05:52]} Qxd4+ {[%emt 0:00:33]} 19. Qf2 {[%emt 0:00:57]} Qd7 {[%emt 0:06:42]} 20. f4 {[%emt 0:10:28]} e4 {[%emt 0:03:25]} 21. dxe4 {[%emt 0:01:05]} Bd4 {[%emt 0:00:55]} 22. Ne3 {[%emt 0:00:40]} Bxe4 {[%emt 0:01:20]} 23. Rfd1 {[%emt 0:02:33]} Bxg2 {[%emt 0:03:14]} 24. c3 {[%emt 0:00:49]} Bxe3 {[%emt 0:00:49]} 25. Rxd7 {[%emt 0:00:35]} Bxf2+ {[%emt 0:00:56]} 26. Kxf2 {[%emt 0:00:06]} Be4 {[%emt 0:18:42]} 0-1

[Event "IND-ch Women 2019"]
[Site "Karaikkudi"]
[Date "2019.07.23"]
[Round "7.15"]
[White "Nanditha V"]
[Black "Thipsay, Bagyashree Sathe"]
[Result "0-1"]
[ECO "B12"]
[WhiteElo "1687"]
[BlackElo "2093"]
[Annotator "NA"]
[PlyCount "90"]
[EventDate "2019.07.19"]
[EventType "swiss"]
[EventCountry "IND"]
[SourceTitle "playchess.com"]
[Source "ChessBase"]
[SourceQuality "1"]
[TimeControl "40/5400+30:1800+30"]

1. e4 {[%emt 0:00:00]} c6 {[%emt 0:00:00]} 2. d4 {[%emt 0:00:51]} d5 {[%emt 0:00:00]} 3. e5 {[%emt 0:00:11]} Bf5 {[%emt 0:00:01]} 4. Nf3 {[%emt 0:00:07]} e6 {[%emt 0:01:29]} 5. Be2 {[%emt 0:00:12]} Nd7 {[%emt 0:00:12]} 6. O-O {[%emt 0:00:09]} Bg6 {[%emt 0:00:36]} 7. c3 {[%emt 0:01:01]} Nh6 {[%emt 0:00:58]} 8. Nbd2 {[%emt 0:00:55]} Be7 {[%emt 0:01:59]} 9. a4 {[%emt 0:03:33]} Rc8 {[%emt 0:04:33]} 10. Nb3 {[%emt 1:10:42]} Nf5 {[%emt 0:00:30]} 11. Bf4 {[%emt 0:00:30]} O-O {[%emt 0:00:30]} 12. a5 {[%emt 0:00:30]} c5 {[%emt 0:00:30]} 13. a6 $11 {[%emt 0:00:30]} b6 {[%emt 0:00:30]} 14. h3 {[%emt 0:00:30]} c4 {[%emt 0:00:30]} 15. Nbd2 {[%emt 0:00:30]} b5 {[%emt 0:00:30]} 16. b3 {[%emt 0:00:30]} Nb8 {[%emt 0:00:30]} 17. bxc4 {[%emt 0:00:30]} bxc4 {[%emt 0:00:30]} 18. Ra4 {[%emt 0:00:30]} Rc6 {[%emt 0:00:30]} 19. Qa1 {[%emt 0:00:30]} Rb6 {[%emt 0:00:30]} 20. Qa2 {[%emt 0:00:30]} Qd7 {[%emt 0:00:30]} 21. g4 {[%emt 0:00:30]} Nh6 {[%emt 0:00:30]} 22. Bg5 {[%emt 0:00:30]} Rc8 {[%emt 0:00:30]} 23. Bxe7 {[%emt 0:00:30]} Qxe7 {[%emt 0:00:30]} 24. Ra1 {[%emt 0:00:30]} Rcc6 {[%emt 0:00:30]} 25. Bxc4 {[%emt 0:00:30]} dxc4 {[%emt 0:00:30]} 26. Nxc4 {[%emt 0:00:30]} Rxa6 {[%emt 0:00:30]} 27. g5 {[%emt 0:00:30]} Rxa4 {[%emt 0:00:30]} 28. Qxa4 {[%emt 0:00:30]} Ra6 {[%emt 0:00:30]} 29. Na5 {[%emt 0:00:30]} Nf5 {[%emt 0:00:30]} 30. Rb1 {[%emt 0:00:30]} Rb6 {[%emt 0:00:30]} 31. Rxb6 {[%emt 0:00:30]} axb6 {[%emt 0:43:43]} 32. Nc4 {[%emt 0:00:20]} Nd7 {[%emt 0:01:07]} 33. Qa8+ {[%emt 0:00:52]} Qf8 {[%emt 0:00:19]} 34. Qb7 {[%emt 0:02:06]} Qd8 {[%emt 0:01:19]} 35. Nd6 {[%emt 0:00:21]} Ne7 {[%emt 0:01:55]} 36. c4 {[%emt 0:00:59]} h6 {[%emt 0:03:38]} 37. Nd2 {[%emt 0:02:52]} hxg5 {[%emt 0:01:48]} 38. N2e4 {[%emt 0:04:14]} Bxe4 {[%emt 0:00:33]} 39. Nxe4 {[%emt 0:00:26]} Nf5 {[%emt 0:01:32]} 40. c5 {[%emt 0:00:00]} bxc5 {[%emt 0:00:00]} 41. dxc5 {[%emt 0:00:46]} Nxe5 {[%emt 0:02:05]} 42. c6 {[%emt 0:00:25]} Qd1+ {[%emt 0:00:59]} 43. Kh2 {[%emt 0:00:30]} Nf3+ {[%emt 0:00:28]} 44. Kg2 {[%emt 0:00:31]} N5h4+ {[%emt 0:00:09]} 45. Kg3 {[%emt 0:00:13]} Qg1# {[%emt 0:00:05]} 0-1

[Event "IND-ch Women 2019"]
[Site "Karaikkudi"]
[Date "2019.07.23"]
[Round "7.16"]
[White "Mrudul Dehankar"]
[Black "Rindhiya V"]
[Result "1-0"]
[ECO "C99"]
[WhiteElo "2074"]
[BlackElo "1573"]
[Annotator "NA"]
[PlyCount "153"]
[EventDate "2019.07.19"]
[EventType "swiss"]
[EventCountry "IND"]
[SourceTitle "playchess.com"]
[Source "ChessBase"]
[SourceQuality "1"]
[TimeControl "40/5400+30:1800+30"]

1. e4 {[%emt 0:00:00]} e5 {[%emt 0:00:00]} 2. Nf3 {[%emt 0:00:12]} Nc6 {[%emt 0:00:00]} 3. Bb5 {[%emt 0:00:03]} a6 {[%emt 0:00:00]} 4. Ba4 {[%emt 0:00:05]} Nf6 {[%emt 0:00:00]} 5. O-O {[%emt 0:00:10]} Be7 {[%emt 0:00:00]} 6. Re1 {[%emt 0:00:10]} b5 {[%emt 0:00:00]} 7. Bb3 {[%emt 0:00:06]} O-O {[%emt 0:00:00]} 8. c3 {[%emt 0:00:08]} d6 {[%emt 0:00:08]} 9. h3 {[%emt 0:00:07]} Na5 {[%emt 0:00:04]} 10. Bc2 {[%emt 0:00:06]} c5 {[%emt 0:00:04]} 11. d4 {[%emt 0:00:06]} Qc7 {[%emt 0:00:05]} 12. Nbd2 {[%emt 0:00:19]} cxd4 {[%emt 0:00:05]} 13. cxd4 {[%emt 0:00:05]} Nc6 {[%emt 0:00:03]} 14. Nb3 {[%emt 0:00:32]} a5 {[%emt 0:00:11]} 15. Be3 {[%emt 0:00:41]} a4 {[%emt 0:00:10]} 16. Nbd2 {[%emt 0:00:07]} Bd7 {[%emt 0:00:54]} 17. Rc1 {[%emt 0:03:04]} Rfc8 $14 {[%emt 0:00:48]} 18. Nf1 {[%emt 1:10:01]} Qa5 {[%emt 0:00:30]} 19. Ng3 {[%emt 0:00:30]} Rc7 {[%emt 0:00:30]} 20. a3 {[%emt 0:00:30]} Rac8 {[%emt 0:00:30]} 21. Bb1 {[%emt 0:00:30]} Bf8 {[%emt 0:00:30]} 22. Ba2 {[%emt 0:00:30]} Nxd4 {[%emt 0:00:30]} 23. Nxd4 {[%emt 0:00:30]} Rxc1 {[%emt 0:00:30]} 24. Bxc1 {[%emt 0:00:30]} exd4 {[%emt 0:00:30]} 25. Rf1 Qb6 {[%emt 0:00:30]} 26. Bg5 {[%emt 0:01:00]} Be7 {[%emt 1:12:36]} 27. Nh5 {[%emt 0:06:48]} Qd8 {[%emt 0:06:12]} 28. Ng3 {[%emt 0:03:50]} h6 {[%emt 0:00:32]} 29. Bf4 {[%emt 0:01:46]} Be6 {[%emt 0:06:10]} 30. Bb1 {[%emt 0:03:09]} Qb6 {[%emt 0:02:07]} 31. Nf5 {[%emt 0:08:52]} Bxf5 {[%emt 0:02:26]} 32. exf5 {[%emt 0:00:01]} Qc5 {[%emt 0:08:29]} 33. Bd3 {[%emt 0:01:04]} Nd5 {[%emt 0:00:41]} 34. Bd2 {[%emt 0:00:27]} Bf6 {[%emt 0:00:33]} 35. Qg4 {[%emt 0:00:50]} Nb6 {[%emt 0:00:40]} 36. Bxh6 {[%emt 0:00:30]} Qe5 {[%emt 0:01:02]} 37. Bf4 {[%emt 0:00:35]} Qc5 {[%emt 0:00:00]} 38. Rc1 {[%emt 0:00:28]} Nc4 {[%emt 0:00:00]} 39. Bh6 {[%emt 0:00:32]} Kf8 {[%emt 0:00:53]} 40. Bf4 {[%emt 0:00:00]} Re8 {[%emt 0:00:00]} 41. Qh5 {[%emt 0:04:51]} g6 {[%emt 0:22:26]} 42. Qh7 {[%emt 0:10:01]} gxf5 {[%emt 0:02:05]} 43. Bh6+ {[%emt 0:02:22]} Ke7 {[%emt 0:00:05]} 44. Re1+ {[%emt 0:00:19]} Kd8 {[%emt 0:07:57]} 45. Rxe8+ {[%emt 0:01:59]} Kxe8 {[%emt 0:00:01]} 46. Qg8+ {[%emt 0:10:11]} Ke7 {[%emt 0:00:04]} 47. g4 {[%emt 0:03:49]} fxg4 {[%emt 0:00:04]} 48. Bf8+ {[%emt 0:00:22]} Kd7 {[%emt 0:00:58]} 49. Qxf7+ {[%emt 0:00:03]} Kc6 {[%emt 0:00:33]} 50. Be4+ {[%emt 0:00:34]} Kb6 {[%emt 0:00:01]} 51. Qxf6 {[%emt 0:01:09]} gxh3 {[%emt 0:00:03]} 52. Qd8+ {[%emt 0:00:45]} Qc7 {[%emt 0:00:28]} 53. Qxc7+ {[%emt 0:00:35]} Kxc7 {[%emt 0:00:01]} 54. Bg7 {[%emt 0:00:10]} Nxb2 {[%emt 0:00:05]} 55. Bd5 {[%emt 0:00:24]} Nc4 {[%emt 0:03:07]} 56. Bxc4 {[%emt 0:00:55]} bxc4 {[%emt 0:00:01]} 57. Bxd4 {[%emt 0:00:01]} Kc6 {[%emt 0:00:02]} 58. f3 {[%emt 0:00:58]} Kd5 {[%emt 0:00:55]} 59. Bc3 {[%emt 0:00:13]} Kc5 {[%emt 0:01:05]} 60. f4 {[%emt 0:00:42]} d5 {[%emt 0:00:07]} 61. f5 {[%emt 0:00:35]} d4 {[%emt 0:00:57]} 62. f6 {[%emt 0:00:08]} dxc3 {[%emt 0:00:09]} 63. f7 {[%emt 0:00:02]} Kd4 {[%emt 0:00:40]} 64. f8=Q {[%emt 0:00:05]} c2 {[%emt 0:00:04]} 65. Qf4+ {[%emt 0:00:06]} Kc3 {[%emt 0:00:25]} 66. Qc1 {[%emt 0:00:02]} Kb3 {[%emt 0:00:48]} 67. Kh2 {[%emt 0:00:05]} Kc3 {[%emt 0:00:04]} 68. Kxh3 {[%emt 0:00:05]} Kb3 {[%emt 0:00:01]} 69. Kg3 {[%emt 0:00:06]} Kc3 {[%emt 0:00:28]} 70. Kf3 {[%emt 0:00:03]} Kb3 {[%emt 0:00:04]} 71. Ke2 {[%emt 0:00:21]} Kc3 {[%emt 0:00:19]} 72. Ke3 {[%emt 0:00:02]} Kb3 {[%emt 0:00:03]} 73. Kd2 {[%emt 0:00:15]} c3+ {[%emt 0:00:01]} 74. Kd3 {[%emt 0:00:10]} Ka2 {[%emt 0:00:02]} 75. Qxc2+ {[%emt 0:00:06]} Ka1 {[%emt 0:00:00]} 76. Qxc3+ {[%emt 0:00:13]} Kb1 {[%emt 0:00:02]} 77. Qb4+ {[%emt 0:00:20]} 1-0

[Event "IND-ch Women 2019"]
[Site "Karaikkudi"]
[Date "2019.07.23"]
[Round "7.17"]
[White "Shah, Vishwa"]
[Black "Chitlange Sakshi"]
[Result "0-1"]
[ECO "B12"]
[WhiteElo "1734"]
[BlackElo "2168"]
[Annotator "ChessBase"]
[PlyCount "62"]
[EventDate "2019.07.19"]
[EventType "swiss"]
[EventCountry "IND"]
[SourceTitle "playchess.com"]
[Source "ChessBase"]
[SourceQuality "1"]
[TimeControl "40/5400+30:1800+30"]

1. e4 {[%emt 0:00:00]} c6 {[%emt 0:00:00]} 2. d4 {[%emt 0:00:00]} d5 {[%emt 0:00:00]} 3. e5 {[%emt 0:00:00]} Bf5 {[%emt 0:00:05]} 4. Nf3 {[%emt 0:00:00]} e6 {[%emt 0:00:10]} 5. Be2 {[%emt 0:00:00]} Nd7 {[%emt 0:00:15]} 6. O-O {[%emt 0:00:08]} h6 {[%emt 0:00:04]} 7. Nbd2 {[%emt 0:00:18]} Ne7 {[%emt 0:00:32]} 8. Nb3 {[%emt 0:00:19]} Qc7 {[%emt 0:00:24]} 9. a4 g5 {[%emt 0:00:07]} 10. a5 {[%emt 0:04:56]} Bg7 {[%emt 0:00:49]} 11. Bd2 {[%emt 0:05:24]} f6 {[%emt 0:04:15]} 12. exf6 {[%emt 0:00:30]} Bxf6 {[%emt 0:00:30]} 13. c4 {[%emt 0:00:30]} a6 {[%emt 0:00:30]} 14. Rc1 {[%emt 0:00:30]} O-O-O {[%emt 0:00:30]} 15. cxd5 {[%emt 0:00:30]} Nxd5 {[%emt 0:00:30]} 16. Bc4 {[%emt 0:00:30]} Kb8 {[%emt 0:00:30]} 17. Qe2 {[%emt 0:00:30]} Ka7 {[%emt 0:00:30]} 18. Ne1 {[%emt 0:00:30]} Qd6 {[%emt 0:00:30]} 19. Nd3 {[%emt 0:00:30]} Bxd3 {[%emt 0:00:30]} 20. Qxd3 {[%emt 0:00:30]} e5 {[%emt 0:00:30]} 21. Bxd5 {[%emt 0:00:30]} Qxd5 {[%emt 0:00:30]} 22. Be3 {[%emt 0:00:30]} Ka8 {[%emt 0:00:30]} 23. Rfd1 {[%emt 0:00:30]} exd4 {[%emt 0:00:30]} 24. Bxd4 {[%emt 0:00:30]} Bxd4 {[%emt 0:00:30]} 25. Nxd4 {[%emt 0:00:30]} Rhe8 {[%emt 0:00:30]} 26. Nb3 {[%emt 0:00:30]} Re1+ {[%emt 0:00:30]} 27. Rxe1 {[%emt 0:00:30]} Qxd3 {[%emt 0:00:30]} 28. Re3 {[%emt 1:10:57]} Qd5 {[%emt 0:53:30]} 29. Rce1 {[%emt 0:00:32]} Nc5 {[%emt 0:01:57]} 30. Nxc5 {[%emt 0:00:38]} Qxc5 {[%emt 0:00:02]} 31. Re5 {[%emt 0:00:06]} Qxe5 {[%emt 0:00:04]} 0-1